[Event "SS Manhem Chess Week GM and IM tournaments 2018"]
[Site "Molnlycke kulturhus, Biblioteksgatan 2, Molnlycke, Sweden"]
[Date "2018.08.11"]
[Round "1.10"]
[White "Antonsen, Mikkel"]
[Black "Pantzar, Milton"]
[Result "0-1"]
[TimeControl "90 minutes for 40 moves + 30 minutes for the rest of the game + 30 seconds per move from move one."]
[WhiteTitle "IM"]
[BlackTitle "FM"]
[WhiteFideId "1401378"]
[BlackFideId "1721003"]
[WhiteElo "2444"]
[BlackElo "2306"]

1. d4 {[%clk 01:30:55]} {[%emt 00:00:03]} Nf6 {[%clk 01:30:51]} {[%emt
00:00:09]} 2. Nf3 {[%clk 01:31:17]} {[%emt 00:00:08]} d5 {[%clk 01:30:59]}
{[%emt 00:00:23]} 3. c4 {[%clk 01:31:42]} {[%emt 00:00:05]} e6 {[%clk
01:31:24]} {[%emt 00:00:05]} 4. g3 {[%clk 01:31:01]} {[%emt 00:01:11]} Bb4+
{[%clk 01:31:46]} {[%emt 00:00:08]} 5. Bd2 {[%clk 01:31:26]} {[%emt 00:00:04]}
Bd6 {[%clk 01:32:10]} {[%emt 00:00:06]} 6. Nc3 {[%clk 01:31:45]} {[%emt
00:00:11]} O-O {[%clk 01:31:55]} {[%emt 00:00:45]} 7. Bg5 {[%clk 01:32:12]}
{[%emt 00:00:03]} c6 {[%clk 01:30:00]} {[%emt 00:02:26]} 8. Bg2 {[%clk
01:31:00]} {[%emt 00:01:42]} h6 {[%clk 01:29:36]} {[%emt 00:00:53]} 9. Bxf6
{[%clk 01:30:59]} {[%emt 00:00:31]} Qxf6 {[%clk 01:29:59]} {[%emt 00:00:07]} 10.
e4 {[%clk 01:22:20]} {[%emt 00:09:08]} Bc7 {[%clk 01:28:42]} {[%emt 00:01:47]}
11. O-O {[%clk 01:20:25]} {[%emt 00:02:25]} dxc4 {[%clk 01:26:32]} {[%emt
00:02:41]} 12. e5 {[%clk 01:20:26]} {[%emt 00:00:29]} Qe7 {[%clk 01:23:00]}
{[%emt 00:04:01]} 13. Ne4 {[%clk 01:19:26]} {[%emt 00:01:30]} b6 {[%clk
01:06:53]} {[%emt 00:16:37]} 14. Qc2 {[%clk 01:15:11]} {[%emt 00:04:45]} Ba6
{[%clk 01:03:25]} {[%emt 00:03:58]} 15. Rfd1 {[%clk 01:13:58]} {[%emt
00:01:43]} Rd8 {[%clk 00:56:27]} {[%emt 00:07:28]} 16. g4 {[%clk 00:59:33]}
{[%emt 00:14:55]} Nd7 {[%clk 00:48:39]} {[%emt 00:08:18]} 17. g5 {[%clk
00:59:58]} {[%emt 00:00:04]} hxg5 {[%clk 00:45:48]} {[%emt 00:03:22]} 18. Nfxg5
{[%clk 00:58:42]} {[%emt 00:01:46]} Nf8 {[%clk 00:43:28]} {[%emt 00:02:50]} 19.
f4 {[%clk 00:58:05]} {[%emt 00:01:07]} Rd7 {[%clk 00:29:48]} {[%emt 00:14:10]}
20. Nc3 {[%clk 00:48:24]} {[%emt 00:10:11]} Rad8 {[%clk 00:25:56]} {[%emt
00:04:22]} 21. Qf2 {[%clk 00:48:48]} {[%emt 00:00:05]} b5 {[%clk 00:22:54]}
{[%emt 00:03:33]} 22. Kh1 {[%clk 00:39:28]} {[%emt 00:09:49]} Bb6 {[%clk
00:19:30]} {[%emt 00:03:54]} 23. Be4 {[%clk 00:28:39]} {[%emt 00:11:19]} Rxd4
{[%clk 00:17:39]} {[%emt 00:02:22]} 24. Rxd4 {[%clk 00:29:01]} {[%emt
00:00:07]} Bxd4 {[%clk 00:16:41]} {[%emt 00:01:28]} 25. Qh4 {[%clk 00:28:50]}
{[%emt 00:00:41]} g6 {[%clk 00:16:43]} {[%emt 00:00:28]} 26. Ne2 {[%clk
00:25:49]} {[%emt 00:03:31]} c5 {[%clk 00:13:37]} {[%emt 00:03:37]} 27. Rf1
{[%clk 00:24:10]} {[%emt 00:02:09]} b4 {[%clk 00:11:31]} {[%emt 00:02:36]} 28.
Rf3 {[%clk 00:16:20]} {[%emt 00:08:19]} Bb7 {[%clk 00:07:34]} {[%emt 00:04:28]}
29. Ng3 {[%clk 00:11:45]} {[%emt 00:05:05]} f5 {[%clk 00:07:42]} {[%emt
00:00:22]} 30. exf6 {[%clk 00:10:55]} {[%emt 00:01:20]} Bxf6 {[%clk 00:08:01]}
{[%emt 00:00:11]} 31. Rf1 {[%clk 00:09:23]} {[%emt 00:02:03]} Rd4 {[%clk
00:06:37]} {[%emt 00:01:53]} 32. Qg4 {[%clk 00:09:02]} {[%emt 00:00:51]} Bxe4+
{[%clk 00:05:07]} {[%emt 00:02:00]} 33. N3xe4 {[%clk 00:07:16]} {[%emt
00:02:16]} Bg7 {[%clk 00:04:38]} {[%emt 00:00:58]} 34. Re1 {[%clk 00:07:36]}
{[%emt 00:00:10]} Qb7 {[%clk 00:04:02]} {[%emt 00:01:07]} 35. h4 {[%clk
00:05:56]} {[%emt 00:02:10]} Qd5 {[%clk 00:03:45]} {[%emt 00:00:47]} 36. h5
{[%clk 00:05:38]} {[%emt 00:00:48]} Qf5 {[%clk 00:03:54]} {[%emt 00:00:21]} 37.
Qf3 {[%clk 00:05:12]} {[%emt 00:00:56]} Rd3 {[%clk 00:03:33]} {[%emt 00:00:51]}
38. Re3 {[%clk 00:03:32]} {[%emt 00:02:09]} gxh5 {[%clk 00:03:01]} {[%emt
00:01:03]} 39. Rxd3 {[%clk 00:01:39]} {[%emt 00:02:24]} cxd3 {[%clk 00:03:29]}
{[%emt 00:00:02]} 40. Ng3 {[%clk 00:02:01]} {[%emt 00:00:07]} 0-1

[Event "SS Manhem Chess Week GM and IM tournaments 2018"]
[Site "Molnlycke kulturhus, Biblioteksgatan 2, Molnlycke, Sweden"]
[Date "2018.08.12"]
[Round "2.1"]
[White "Gritsak, Orest"]
[Black "Christiansen, Johan-Sebastian"]
[Result "1/2-1/2"]
[TimeControl "90 minutes for 40 moves + 30 minutes for the rest of the game + 30 seconds per move from move one."]
[WhiteTitle "GM"]
[BlackTitle "IM"]
[WhiteFideId "14102188"]
[BlackFideId "1512668"]
[WhiteElo "2464"]
[BlackElo "2515"]

1. c4 {[%clk 01:30:58]} {[%emt 00:00:01]} e5 {[%clk 01:30:55]} {[%emt
00:00:06]} 2. e3 {[%clk 01:31:05]} {[%emt 00:00:23]} Nf6 {[%clk 01:31:10]}
{[%emt 00:00:15]} 3. Nc3 {[%clk 01:31:20]} {[%emt 00:00:15]} Bb4 {[%clk
01:29:49]} {[%emt 00:01:51]} 4. Nge2 {[%clk 01:31:27]} {[%emt 00:00:22]} O-O
{[%clk 01:25:00]} {[%emt 00:05:19]} 5. a3 {[%clk 01:29:45]} {[%emt 00:02:13]}
Be7 {[%clk 01:24:49]} {[%emt 00:00:41]} 6. Qc2 {[%clk 01:19:03]} {[%emt
00:11:12]} d5 {[%clk 01:07:35]} {[%emt 00:17:45]} 7. cxd5 {[%clk 01:19:01]}
{[%emt 00:00:32]} Nxd5 {[%clk 01:08:01]} {[%emt 00:00:03]} 8. Nxd5 {[%clk
01:06:40]} {[%emt 00:12:52]} Qxd5 {[%clk 01:08:25]} {[%emt 00:00:06]} 9. Nc3
{[%clk 01:07:06]} {[%emt 00:00:04]} Qc6 {[%clk 01:03:56]} {[%emt 00:04:59]} 10.
b4 {[%clk 01:04:35]} {[%emt 00:03:02]} Qg6 {[%clk 00:53:38]} {[%emt 00:10:47]}
11. Qxg6 {[%clk 00:55:34]} {[%emt 00:09:31]} hxg6 {[%clk 00:54:02]} {[%emt
00:00:06]} 12. Bb2 {[%clk 00:55:47]} {[%emt 00:00:17]} c6 {[%clk 00:51:20]}
{[%emt 00:03:12]} 13. Ne4 {[%clk 00:40:43]} {[%emt 00:15:35]} Nd7 {[%clk
00:46:40]} {[%emt 00:05:11]} 14. h4 {[%clk 00:36:55]} {[%emt 00:04:17]} Re8
{[%emt 00:16:32]} 1/2-1/2

[Event "SS Manhem Chess Week GM and IM tournaments 2018"]
[Site "Molnlycke kulturhus, Biblioteksgatan 2, Molnlycke, Sweden"]
[Date "2018.08.12"]
[Round "2.3"]
[White "Brynell, Stellan"]
[Black "Vestby-Ellingsen, Mads"]
[Result "1-0"]
[TimeControl "90 minutes for 40 moves + 30 minutes for the rest of the game + 30 seconds per move from move one."]
[WhiteTitle "GM"]
[BlackTitle "FM"]
[WhiteFideId "1700219"]
[BlackFideId "1520857"]
[WhiteElo "2391"]
[BlackElo "2409"]

1. Nf3 {[%clk 01:30:52]} {[%emt 00:00:07]} c5 {[%clk 01:28:07]} {[%emt
00:02:53]} 2. b3 {[%clk 01:29:22]} {[%emt 00:02:00]} d5 {[%clk 01:21:36]}
{[%emt 00:07:01]} 3. e3 {[%clk 01:23:35]} {[%emt 00:06:17]} Nf6 {[%clk
01:16:30]} {[%emt 00:05:35]} 4. Bb2 {[%clk 01:21:25]} {[%emt 00:02:41]} e6
{[%clk 01:16:24]} {[%emt 00:00:35]} 5. c4 {[%clk 01:14:43]} {[%emt 00:07:13]}
Nc6 {[%clk 00:59:15]} {[%emt 00:17:39]} 6. cxd5 {[%clk 01:00:27]} {[%emt
00:14:46]} exd5 {[%clk 00:59:24]} {[%emt 00:00:20]} 7. Be2 {[%clk 00:48:09]}
{[%emt 00:12:49]} Bd6 {[%clk 00:57:45]} {[%emt 00:02:09]} 8. O-O {[%clk
00:47:48]} {[%emt 00:00:51]} O-O {[%clk 00:56:54]} {[%emt 00:01:21]} 9. d4
{[%clk 00:47:45]} {[%emt 00:00:34]} a6 {[%clk 00:45:40]} {[%emt 00:11:44]} 10.
Nbd2 {[%clk 00:42:02]} {[%emt 00:06:13]} cxd4 {[%clk 00:39:46]} {[%emt
00:06:24]} 11. Nxd4 {[%clk 00:42:19]} {[%emt 00:00:14]} Bc7 {[%clk 00:38:37]}
{[%emt 00:01:38]} 12. Rc1 {[%clk 00:38:58]} {[%emt 00:03:52]} Bd7 {[%clk
00:32:29]} {[%emt 00:06:38]} 13. N2f3 {[%clk 00:34:57]} {[%emt 00:04:31]} Re8
{[%clk 00:31:22]} {[%emt 00:01:36]} 14. Nxc6 {[%clk 00:30:14]} {[%emt
00:05:14]} bxc6 {[%clk 00:23:32]} {[%emt 00:08:20]} 15. Nd4 {[%clk 00:28:44]}
{[%emt 00:02:00]} Qe7 {[%clk 00:23:37]} {[%emt 00:00:24]} 16. Qc2 {[%clk
00:28:35]} {[%emt 00:00:38]} Qd6 {[%clk 00:23:35]} {[%emt 00:00:32]} 17. g3
{[%clk 00:25:08]} {[%emt 00:03:57]} Bb6 {[%clk 00:23:38]} {[%emt 00:00:27]} 18.
Bf3 {[%clk 00:23:08]} {[%emt 00:02:31]} Rac8 {[%clk 00:21:05]} {[%emt
00:03:04]} 19. Qd3 {[%clk 00:21:38]} {[%emt 00:01:59]} a5 {[%clk 00:18:39]}
{[%emt 00:02:56]} 20. Rc2 {[%clk 00:13:02]} {[%emt 00:09:06]} Ne4 {[%clk
00:09:49]} {[%emt 00:09:20]} 21. Bg2 {[%clk 00:12:53]} {[%emt 00:00:39]} h5
{[%clk 00:04:35]} {[%emt 00:05:45]} 22. Qa6 {[%clk 00:07:18]} {[%emt 00:06:06]}
c5 {[%clk 00:03:18]} {[%emt 00:01:46]} 23. Nf3 {[%clk 00:06:34]} {[%emt
00:01:13]} c4 {[%clk 00:01:47]} {[%emt 00:02:02]} 24. Bd4 {[%clk 00:05:39]}
{[%emt 00:01:25]} Nc5 {[%clk 00:01:37]} {[%emt 00:00:40]} 25. Bxc5 {[%clk
00:05:38]} {[%emt 00:00:31]} Qxc5 {[%clk 00:00:46]} {[%emt 00:01:21]} 26. Nd4
{[%clk 00:05:24]} {[%emt 00:00:44]} Rb8 {[%clk 00:00:31]} {[%emt 00:00:45]} 27.
bxc4 {[%clk 00:03:54]} {[%emt 00:02:00]} Qb4 {[%clk 00:00:46]} {[%emt
00:00:15]} 28. Bxd5 {[%clk 00:02:36]} {[%emt 00:01:49]} Bxd4 {[%clk 00:00:54]}
{[%emt 00:00:22]} 29. exd4 {[%clk 00:02:50]} {[%emt 00:00:16]} Re1 {[%clk
00:00:37]} {[%emt 00:00:46]} 30. Rc1 {[%clk 00:01:53]} {[%emt 00:01:28]} Rxc1
{[%clk 00:00:39]} {[%emt 00:00:28]} 31. Rxc1 {[%clk 00:02:20]} {[%emt
00:00:03]} Bh3 {[%clk 00:00:31]} {[%emt 00:00:38]} 32. Qg6 {[%clk 00:02:04]}
{[%emt 00:00:46]} Rb7 {[%clk 00:00:32]} {[%emt 00:00:30]} 33. Qxh5 {[%clk
00:01:56]} {[%emt 00:00:37]} Qb2 {[%clk 00:00:31]} {[%emt 00:00:31]} 34. Rd1
{[%clk 00:01:04]} {[%emt 00:01:22]} Bc8 {[%clk 00:00:41]} {[%emt 00:00:20]} 35.
Re1 {[%clk 00:00:58]} {[%emt 00:00:36]} Be6 {[%clk 00:00:34]} {[%emt 00:00:37]}
36. Bxb7 {[%clk 00:00:47]} {[%emt 00:00:41]} Qxb7 {[%clk 00:00:55]} {[%emt
00:00:08]} 37. d5 {[%clk 00:01:07]} {[%emt 00:00:10]} Qb4 {[%clk 00:01:08]}
{[%emt 00:00:17]} 38. Qe5 {[%clk 00:00:37]} {[%emt 00:01:00]} Bh3 {[%clk
00:01:28]} {[%emt 00:00:09]} 39. d6 {[%clk 00:00:43]} {[%emt 00:00:25]} Qxc4
{[%clk 00:01:15]} {[%emt 00:00:43]} 40. Qe8+ {[%clk 00:01:00]} {[%emt
00:00:12]} 1-0

[Event "SS Manhem Chess Week GM and IM tournaments 2018"]
[Site "Molnlycke kulturhus, Biblioteksgatan 2, Molnlycke, Sweden"]
[Date "2018.08.12"]
[Round "2.4"]
[White "Rozentalis, Eduardas"]
[Black "Sammalvuo, Tapani"]
[Result "1-0"]
[TimeControl "90 minutes for 40 moves + 30 minutes for the rest of the game + 30 seconds per move from move one."]
[WhiteTitle "GM"]
[BlackTitle "IM"]
[WhiteFideId "12800023"]
[BlackFideId "501115"]
[WhiteElo "2503"]
[BlackElo "2411"]

1. e4 {[%clk 01:30:56]} {[%emt 00:00:02]} c5 {[%clk 01:30:57]} {[%emt
00:00:03]} 2. Nf3 {[%clk 01:31:03]} {[%emt 00:00:23]} d6 {[%clk 01:31:24]}
{[%emt 00:00:04]} 3. Bb5+ {[%clk 01:30:52]} {[%emt 00:00:41]} Nc6 {[%clk
01:31:50]} {[%emt 00:00:04]} 4. d4 {[%clk 01:29:34]} {[%emt 00:01:47]} cxd4
{[%clk 01:32:13]} {[%emt 00:00:07]} 5. Qxd4 {[%clk 01:30:01]} {[%emt 00:00:03]}
Bd7 {[%clk 01:32:37]} {[%emt 00:00:05]} 6. Bxc6 {[%clk 01:29:12]} {[%emt
00:01:19]} Bxc6 {[%clk 01:33:05]} {[%emt 00:00:02]} 7. Nc3 {[%clk 01:29:22]}
{[%emt 00:00:20]} Nf6 {[%clk 01:33:30]} {[%emt 00:00:04]} 8. Bg5 {[%clk
01:29:44]} {[%emt 00:00:08]} e6 {[%clk 01:33:57]} {[%emt 00:00:03]} 9. O-O-O
{[%clk 01:30:00]} {[%emt 00:00:14]} Be7 {[%clk 01:34:25]} {[%emt 00:00:02]} 10.
Rhe1 {[%clk 01:30:13]} {[%emt 00:00:16]} O-O {[%clk 01:34:50]} {[%emt
00:00:06]} 11. Kb1 {[%clk 01:30:33]} {[%emt 00:00:10]} h6 {[%clk 01:35:12]}
{[%emt 00:00:08]} 12. Bh4 {[%clk 01:29:43]} {[%emt 00:01:20]} Qa5 {[%clk
01:35:39]} {[%emt 00:00:04]} 13. Qd2 {[%clk 01:28:02]} {[%emt 00:02:10]} Qh5
{[%clk 01:36:00]} {[%emt 00:00:09]} 14. h3 {[%clk 01:23:38]} {[%emt 00:04:54]}
Rfd8 {[%clk 01:30:41]} {[%emt 00:05:49]} 15. g4 {[%clk 01:17:20]} {[%emt
00:06:48]} Qc5 {[%clk 01:31:07]} {[%emt 00:00:04]} 16. Nd4 {[%clk 01:05:28]}
{[%emt 00:12:22]} g5 {[%clk 01:31:30]} {[%emt 00:00:07]} 17. Bg3 {[%clk
00:50:39]} {[%emt 00:15:19]} b5 {[%clk 01:31:58]} {[%emt 00:00:02]} 18. f3
{[%clk 00:45:38]} {[%emt 00:05:31]} Be8 {[%clk 01:05:52]} {[%emt 00:26:36]} 19.
h4 {[%clk 00:44:19]} {[%emt 00:01:48]} b4 {[%clk 01:06:17]} {[%emt 00:00:06]}
20. Nce2 {[%clk 00:43:41]} {[%emt 00:01:08]} Nd7 {[%clk 01:03:39]} {[%emt
00:03:08]} 21. hxg5 {[%clk 00:41:18]} {[%emt 00:02:52]} hxg5 {[%clk 01:03:55]}
{[%emt 00:00:13]} 22. Nb3 {[%clk 00:34:38]} {[%emt 00:07:10]} Qb6 {[%clk
01:04:19]} {[%emt 00:00:06]} 23. Rh1 {[%clk 00:34:56]} {[%emt 00:00:11]} Ne5
{[%clk 01:04:32]} {[%emt 00:00:18]} 24. Ned4 {[%clk 00:34:38]} {[%emt
00:00:47]} Ng6 {[%clk 01:04:05]} {[%emt 00:00:57]} 25. Rh6 {[%clk 00:30:38]}
{[%emt 00:04:30]} Bf6 {[%clk 01:04:21]} {[%emt 00:00:14]} 26. Rxg6+ {[%clk
00:27:10]} {[%emt 00:03:58]} fxg6 {[%clk 01:04:49]} {[%emt 00:00:03]} 27. Nxe6
{[%clk 00:27:35]} {[%emt 00:00:05]} Rd7 {[%clk 00:57:52]} {[%emt 00:07:27]} 28.
Bf2 {[%clk 00:25:18]} {[%emt 00:02:46]} Qb5 {[%clk 00:57:59]} {[%emt 00:00:23]}
29. Bd4 {[%clk 00:25:34]} {[%emt 00:00:14]} Bxd4 {[%clk 00:58:14]} {[%emt
00:00:15]} 30. Nbxd4 {[%clk 00:24:28]} {[%emt 00:01:37]} Qe5 {[%clk 00:58:17]}
{[%emt 00:00:26]} 31. Nxg5 {[%clk 00:23:57]} {[%emt 00:01:01]} Rc8 {[%clk
00:54:52]} {[%emt 00:03:55]} 32. f4 {[%clk 00:22:43]} {[%emt 00:01:44]} Qf6
{[%clk 00:55:16]} {[%emt 00:00:07]} 33. Rh1 {[%clk 00:20:34]} {[%emt 00:02:36]}
Re7 {[%clk 00:54:17]} {[%emt 00:01:31]} 34. f5 {[%clk 00:14:44]} {[%emt
00:06:20]} Rc4 {[%clk 00:51:55]} {[%emt 00:02:52]} 35. Nde6 {[%clk 00:14:16]}
{[%emt 00:00:58]} Qe5 {[%clk 00:52:23]} {[%emt 00:00:03]} 36. Nf3 {[%clk
00:09:11]} {[%emt 00:05:34]} Qf6 {[%clk 00:46:48]} {[%emt 00:06:05]} 37. Qd5
{[%clk 00:05:23]} {[%emt 00:04:18]} Rc8 {[%clk 00:46:39]} {[%emt 00:00:39]} 38.
g5 {[%clk 00:05:35]} {[%emt 00:00:18]} Qf7 {[%clk 00:47:02]} {[%emt 00:00:08]}
39. Qd4 {[%clk 00:05:52]} {[%emt 00:00:13]} 1-0

[Event "SS Manhem Chess Week GM and IM tournaments 2018"]
[Site "Molnlycke kulturhus, Biblioteksgatan 2, Molnlycke, Sweden"]
[Date "2018.08.12"]
[Round "2.5"]
[White "Schneider, Stefan"]
[Black "Johansson, Linus"]
[Result "1/2-1/2"]
[TimeControl "90 minutes for 40 moves + 30 minutes for the rest of the game + 30 seconds per move from move one."]
[WhiteTitle "IM"]
[BlackTitle "IM"]
[WhiteFideId "1703013"]
[BlackFideId "1711113"]
[WhiteElo "2399"]
[BlackElo "2457"]

1. d4 {[%clk 01:30:57]} {[%emt 00:00:02]} Nf6 {[%clk 01:30:57]} {[%emt
00:00:04]} 2. Nf3 {[%clk 01:31:12]} {[%emt 00:00:14]} e6 {[%clk 01:31:22]}
{[%emt 00:00:05]} 3. Bf4 {[%clk 01:31:04]} {[%emt 00:00:38]} b6 {[%clk
01:31:42]} {[%emt 00:00:11]} 4. c4 {[%clk 01:29:55]} {[%emt 00:01:39]} Bb7
{[%clk 01:31:58]} {[%emt 00:00:14]} 5. e3 {[%clk 01:29:59]} {[%emt 00:00:25]}
Bb4+ {[%clk 01:32:09]} {[%emt 00:00:19]} 6. Nfd2 {[%clk 01:30:00]} {[%emt
00:00:27]} O-O {[%clk 01:32:18]} {[%emt 00:00:22]} 7. a3 {[%clk 01:30:20]}
{[%emt 00:00:11]} Be7 {[%clk 01:32:34]} {[%emt 00:00:13]} 8. Nc3 {[%clk
01:30:28]} {[%emt 00:00:22]} d5 {[%clk 01:27:29]} {[%emt 00:05:36]} 9. Be2
{[%clk 01:29:30]} {[%emt 00:01:28]} c5 {[%clk 01:18:58]} {[%emt 00:09:01]} 10.
dxc5 {[%clk 01:27:27]} {[%emt 00:02:33]} bxc5 {[%clk 01:19:17]} {[%emt
00:00:11]} 11. Bf3 {[%clk 01:26:26]} {[%emt 00:01:30]} Nbd7 {[%clk 01:18:51]}
{[%emt 00:00:57]} 12. cxd5 {[%clk 01:23:52]} {[%emt 00:03:05]} exd5 {[%clk
01:19:14]} {[%emt 00:00:07]} 13. O-O {[%clk 01:22:19]} {[%emt 00:02:02]} Qb6
{[%clk 01:17:15]} {[%emt 00:02:29]} 14. Qc2 {[%clk 01:17:15]} {[%emt 00:05:34]}
Rac8 {[%clk 01:10:17]} {[%emt 00:07:28]} 15. Rfe1 {[%clk 01:13:07]} {[%emt
00:04:38]} Qe6 {[%clk 01:05:56]} {[%emt 00:04:51]} 16. e4 {[%clk 00:57:32]}
{[%emt 00:16:05]} d4 {[%clk 01:05:50]} {[%emt 00:00:37]} 17. Nd5 {[%clk
00:57:40]} {[%emt 00:00:22]} Nb6 {[%clk 00:57:40]} {[%emt 00:08:40]} 18. Nc4
{[%clk 00:40:22]} {[%emt 00:17:47]} Nxc4 {[%clk 00:47:48]} {[%emt 00:10:22]} 19.
Qxc4 {[%clk 00:30:14]} {[%emt 00:10:38]} Bd8 {[%clk 00:46:50]} {[%emt
00:01:28]} 20. Nxf6+ {[%clk 00:16:12]} {[%emt 00:14:32]} Qxf6 {[%clk 00:47:00]}
{[%emt 00:00:19]} 21. Bg3 {[%clk 00:13:04]} {[%emt 00:03:38]} Ba5 {[%clk
00:43:26]} {[%emt 00:04:04]} 22. Red1 {[%clk 00:08:36]} {[%emt 00:04:59]} Qb6
{[%clk 00:32:37]} {[%emt 00:11:19]} 23. Rab1 {[%clk 00:04:45]} {[%emt
00:04:21]} Ba6 {[%clk 00:30:22]} {[%emt 00:02:44]} 24. Qd5 {[%clk 00:02:33]}
{[%emt 00:02:42]} Rfd8 {[%clk 00:27:51]} {[%emt 00:03:01]} 25. Qg5 {[%clk
00:03:01]} {[%emt 00:00:02]} Bc4 {[%clk 00:20:31]} {[%emt 00:07:50]} 26. Bg4
{[%clk 00:02:28]} {[%emt 00:01:03]} h6 {[%clk 00:19:52]} {[%emt 00:01:09]} 27.
Qe5 {[%clk 00:02:03]} {[%emt 00:00:55]} Re8 {[%clk 00:15:18]} {[%emt 00:05:04]}
28. Qf4 {[%clk 00:01:55]} {[%emt 00:00:38]} Rcd8 {[%clk 00:14:13]} {[%emt
00:01:35]} 29. b4 {[%clk 00:01:14]} {[%emt 00:01:11]} cxb4 {[%clk 00:14:06]}
{[%emt 00:00:38]} 30. axb4 {[%clk 00:01:42]} {[%emt 00:00:02]} Bxb4 {[%clk
00:10:43]} {[%emt 00:03:53]} 31. Qc7 {[%clk 00:02:11]} {[%emt 00:00:01]} Qxc7
{[%clk 00:10:30]} {[%emt 00:00:43]} 32. Bxc7 {[%clk 00:02:39]} {[%emt
00:00:02]} a5 {[%clk 00:10:32]} {[%emt 00:00:28]} 33. Bxd8 {[%clk 00:01:56]}
{[%emt 00:01:13]} Rxd8 {[%clk 00:11:01]} 34. Rbc1 {[%clk 00:01:07]} {[%emt
00:01:20]} Bb5 {[%clk 00:05:32]} {[%emt 00:05:59]} 35. Rc7 {[%clk 00:01:30]}
{[%emt 00:00:07]} d3 {[%clk 00:04:49]} {[%emt 00:01:14]} 36. h4 {[%clk
00:00:54]} {[%emt 00:01:06]} d2 {[%clk 00:02:05]} {[%emt 00:03:14]} 37. Ra1
{[%clk 00:00:51]} {[%emt 00:00:33]} Ba4 {[%clk 00:01:53]} {[%emt 00:00:42]} 38.
Bd1 {[%clk 00:00:48]} {[%emt 00:00:33]} Bxd1 {[%clk 00:02:11]} {[%emt
00:00:12]} 39. Rxd1 {[%clk 00:01:14]} {[%emt 00:00:04]} Re8 {[%clk 00:02:17]}
{[%emt 00:00:24]} 40. f3 {[%clk 00:01:13]} {[%emt 00:00:31]} f5 {[%clk
00:02:39]} {[%emt 00:00:07]} 41. Rc4 {[%clk 00:28:06]} {[%emt 00:03:38]} fxe4
{[%clk 00:28:17]} {[%emt 00:04:52]} 42. fxe4 {[%clk 00:28:33]} {[%emt
00:00:02]} Rf8 {[%clk 00:27:40]} {[%emt 00:01:07]} 43. h5 {[%clk 00:15:09]}
{[%emt 00:13:55]} Rf4 {[%clk 00:27:11]} {[%emt 00:00:59]} 44. g3 {[%clk
00:11:59]} {[%emt 00:03:40]} Rf3 {[%clk 00:26:36]} {[%emt 00:01:05]} 45. Kg2
{[%clk 00:12:07]} {[%emt 00:00:22]} Re3 {[%clk 00:26:52]} {[%emt 00:00:13]} 46.
Rd4 {[%clk 00:03:11]} {[%emt 00:09:27]} Kf7 {[%clk 00:25:55]} {[%emt 00:01:27]}
47. R1xd2 {[%clk 00:01:57]} {[%emt 00:01:44]} Bxd2 {[%clk 00:26:16]} {[%emt
00:00:09]} 48. Rxd2 {[%clk 00:02:21]} {[%emt 00:00:06]} Rxe4 {[%clk 00:26:20]}
{[%emt 00:00:25]} 49. Rd5 {[%clk 00:02:18]} {[%emt 00:00:33]} Ra4 {[%clk
00:19:09]} {[%emt 00:07:41]} 50. Kh3 {[%clk 00:01:51]} {[%emt 00:00:57]} Ra1
{[%clk 00:17:51]} {[%emt 00:01:48]} 51. Kg4 {[%clk 00:01:40]} {[%emt 00:00:42]}
Ke6 {[%clk 00:16:13]} {[%emt 00:02:09]} 52. Rb5 {[%clk 00:02:05]} {[%emt
00:00:04]} Ra4+ {[%clk 00:16:16]} {[%emt 00:00:27]} 53. Kh3 {[%clk 00:02:20]}
{[%emt 00:00:15]} Kf6 {[%clk 00:16:25]} {[%emt 00:00:21]} 54. Rb6+ {[%clk
00:02:19]} {[%emt 00:00:32]} Kg5 {[%clk 00:15:31]} {[%emt 00:01:24]} 55. Rg6+
{[%clk 00:01:43]} {[%emt 00:01:06]} Kxh5 {[%clk 00:15:42]} {[%emt 00:00:19]} 56.
Rxg7 {[%clk 00:02:12]} {[%emt 00:00:02]} Ra3 {[%clk 00:16:03]} {[%emt
00:00:08]} 57. Rg8 {[%clk 00:02:22]} {[%emt 00:00:19]} a4 {[%clk 00:14:22]}
{[%emt 00:02:12]} 58. Rg7 {[%clk 00:02:10]} {[%emt 00:00:42]} Rd3 {[%clk
00:10:26]} {[%emt 00:04:26]} 59. Rg4 {[%clk 00:02:15]} {[%emt 00:00:25]} a3
{[%clk 00:10:35]} {[%emt 00:00:23]} 60. Ra4 {[%clk 00:02:33]} {[%emt 00:00:11]}
Kg5 {[%clk 00:10:32]} {[%emt 00:00:32]} 61. Ra5+ {[%clk 00:02:39]} {[%emt
00:00:25]} Kf6 {[%clk 00:10:55]} {[%emt 00:00:07]} 62. Kh4 {[%clk 00:02:07]}
{[%emt 00:01:01]} Ke6 {[%clk 00:11:10]} {[%emt 00:00:15]} 63. g4 {[%clk
00:01:39]} {[%emt 00:00:59]} Kd6 {[%clk 00:09:32]} {[%emt 00:02:07]} 64. Ra6+
{[%clk 00:01:28]} {[%emt 00:00:41]} Kc5 {[%clk 00:06:31]} {[%emt 00:03:31]} 65.
Rxh6 {[%clk 00:01:33]} {[%emt 00:00:26]} Rd6 {[%clk 00:06:51]} {[%emt
00:00:09]} 66. Rh8 {[%clk 00:01:48]} {[%emt 00:00:14]} Ra6 {[%clk 00:07:10]}
{[%emt 00:00:11]} 67. Rc8+ {[%clk 00:01:59]} {[%emt 00:00:19]} Kd6 {[%clk
00:06:44]} {[%emt 00:00:56]} 68. Rc1 {[%clk 00:02:09]} {[%emt 00:00:19]} a2
{[%clk 00:07:06]} {[%emt 00:00:08]} 69. Ra1 {[%clk 00:02:17]} {[%emt 00:00:23]}
Ke6 {[%clk 00:07:14]} {[%emt 00:00:22]} 70. Kh5 {[%clk 00:02:02]} {[%emt
00:00:44]} Kf7 {[%clk 00:07:11]} {[%emt 00:00:33]} 71. g5 {[%clk 00:02:02]}
{[%emt 00:00:31]} Ra4 {[%clk 00:07:12]} {[%emt 00:00:29]} 72. Rf1+ {[%clk
00:00:42]} {[%emt 00:01:50]} Kg8 {[%clk 00:07:05]} {[%emt 00:00:36]} 73. Ra1
{[%clk 00:01:07]} {[%emt 00:00:05]} Kg7 {[%clk 00:07:30]} {[%emt 00:00:04]} 74.
g6 {[%clk 00:01:08]} {[%emt 00:00:30]} Ra6 {[%clk 00:04:43]} {[%emt 00:03:18]}
75. Kg5 {[%clk 00:01:08]} {[%emt 00:00:26]} Rxg6+ {[%clk 00:04:36]} {[%emt
00:00:40]} 1/2-1/2